[Event "GrandPrix_30.05"]
[Site "Chess.com"]
[Date "2020.05.30"]
[Round "7"]
[White "hubertsmazak"]
[Black "AlexVanGog"]
[Result "0-1"]
[WhiteElo "2252"]
[BlackElo "2469"]
[TimeControl "600+2"]
[EndTime "11:14:21 PDT"]
[Termination "AlexVanGog won by resignation"]

1. d4 {[%clk 0:10:01.9]} 1... Nf6 {[%clk 0:10:00.4]} 2. c4 {[%clk 0:10:02.2]}
2... g6 {[%clk 0:10:01.7]} 3. Nc3 {[%clk 0:10:02.7]} 3... d5 {[%clk 0:10:02.6]}
4. cxd5 {[%clk 0:10:04.6]} 4... Nxd5 {[%clk 0:10:04.5]} 5. e4 {[%clk 0:10:06.3]}
5... Nxc3 {[%clk 0:10:05.3]} 6. bxc3 {[%clk 0:10:08.2]} 6... Bg7 {[%clk
0:10:06.7]} 7. Bc4 {[%clk 0:10:09.8]} 7... O-O {[%clk 0:10:06.9]} 8. Ne2 {[%clk
0:10:10.5]} 8... c5 {[%clk 0:10:08]} 9. O-O {[%clk 0:10:11.2]} 9... Qc7 {[%clk
0:10:09]} 10. d5 {[%clk 0:09:23.6]} 10... Nd7 {[%clk 0:10:01.2]} 11. f4 {[%clk
0:09:06.1]} 11... Nb6 {[%clk 0:09:58.6]} 12. Qd3 {[%clk 0:08:34.9]} 12... Nxc4
{[%clk 0:09:56.3]} 13. Qxc4 {[%clk 0:08:35.6]} 13... e6 {[%clk 0:09:56]} 14. Be3
{[%clk 0:08:10.1]} 14... b6 {[%clk 0:09:56.4]} 15. e5 {[%clk 0:08:00.7]} 15...
exd5 {[%clk 0:09:54.3]} 16. Qxd5 {[%clk 0:08:02.6]} 16... Bb7 {[%clk 0:09:55.3]}
17. Qc4 {[%clk 0:07:59.8]} 17... Qc6 {[%clk 0:09:55.9]} 18. Rf2 {[%clk
0:08:01.1]} 18... Rad8 {[%clk 0:09:51.1]} 19. Ng3 {[%clk 0:07:52.8]} 19... Rd7
{[%clk 0:09:43]} 20. Raf1 {[%clk 0:07:43.3]} 20... Rfd8 {[%clk 0:09:35.6]} 21.
f5 {[%clk 0:07:16.3]} 21... Bxe5 {[%clk 0:09:33.5]} 22. fxg6 {[%clk 0:07:17.4]}
22... hxg6 {[%clk 0:09:35.1]} 23. Qg4 {[%clk 0:07:18.8]} 23... Bg7 {[%clk
0:09:19.9]} 24. h4 {[%clk 0:07:01.1]} 24... Re8 {[%clk 0:09:15.2]} 25. Bg5
{[%clk 0:06:46.7]} 25... Bxc3 {[%clk 0:08:45.6]} 26. h5 {[%clk 0:06:43.1]} 26...
Bd4 {[%clk 0:08:43.9]} 27. Nh1 {[%clk 0:06:33.2]} 27... gxh5 {[%clk 0:08:16.2]}
28. Qg3 {[%clk 0:06:30]} 28... Qg6 {[%clk 0:08:13.1]} 29. Kh2 {[%clk 0:06:30.7]}
29... Bxf2 {[%clk 0:08:10.8]} 30. Nxf2 {[%clk 0:06:32.5]} 30... Re2 {[%clk
0:08:02.8]} 31. Qf4 {[%clk 0:06:23.1]} 31... Kh7 {[%clk 0:07:39.4]} 0-1

[Event "GrandPrix_30.05"]
[Site "Chess.com"]
[Date "2020.05.30"]
[Round "7"]
[White "vagpat"]
[Black "KacperKacprzak"]
[Result "1-0"]
[WhiteElo "2205"]
[BlackElo "2056"]
[TimeControl "600+2"]
[EndTime "11:14:55 PDT"]
[Termination "vagpat won by resignation"]

1. e4 {[%clk 0:10:01.9]} 1... c5 {[%clk 0:09:58]} 2. Nf3 {[%clk 0:10:01.7]} 2...
Nc6 {[%clk 0:09:58.6]} 3. d4 {[%clk 0:10:02.9]} 3... cxd4 {[%clk 0:10:00.5]} 4.
Nxd4 {[%clk 0:10:04.8]} 4... Nf6 {[%clk 0:10:01.7]} 5. Nc3 {[%clk 0:10:06.1]}
5... e5 {[%clk 0:10:02.3]} 6. Ndb5 {[%clk 0:10:07.5]} 6... d6 {[%clk 0:10:02.4]}
7. Bg5 {[%clk 0:10:09]} 7... a6 {[%clk 0:10:02.2]} 8. Na3 {[%clk 0:10:10.6]}
8... b5 {[%clk 0:10:01.6]} 9. Bxf6 {[%clk 0:10:12.1]} 9... gxf6 {[%clk
0:10:03.2]} 10. Nd5 {[%clk 0:10:13.6]} 10... f5 {[%clk 0:10:02.7]} 11. Bxb5
{[%clk 0:10:14.8]} 11... axb5 {[%clk 0:10:00.7]} 12. Nxb5 {[%clk 0:10:16.7]}
12... Ra4 {[%clk 0:09:45.4]} 13. b4 {[%clk 0:10:17]} 13... Bg7 {[%clk 0:08:56]}
14. c3 {[%clk 0:10:06.2]} 14... Ra6 {[%clk 0:08:30.8]} 15. Nbc7+ {[%clk
0:09:59.8]} 15... Kf8 {[%clk 0:08:31]} 16. b5 {[%clk 0:09:58.6]} 16... Ra7
{[%clk 0:08:26.2]} 17. bxc6 {[%clk 0:09:12.9]} 17... Rxc7 {[%clk 0:08:25.6]} 18.
Nxc7 {[%clk 0:09:14.8]} 18... Qxc7 {[%clk 0:08:27.5]} 19. Qa4 {[%clk 0:09:16.1]}
19... fxe4 {[%clk 0:08:26.7]} 20. Qxe4 {[%clk 0:09:07]} 20... Be6 {[%clk
0:08:25.2]} 21. O-O {[%clk 0:09:02.1]} 21... d5 {[%clk 0:08:25]} 22. Qb4+ {[%clk
0:08:55.9]} 22... Ke8 {[%clk 0:08:08.4]} 23. Qa4 {[%clk 0:08:37]} 23... Ke7
{[%clk 0:08:07.3]} 24. Rab1 {[%clk 0:08:06.1]} 24... Rb8 {[%clk 0:07:55.5]} 25.
Qa3+ {[%clk 0:08:01.2]} 25... Kf6 {[%clk 0:07:42.4]} 26. Rxb8 {[%clk 0:07:40.7]}
26... Qxb8 {[%clk 0:07:44.3]} 27. Qc5 {[%clk 0:07:12.2]} 27... Bf8 {[%clk
0:07:41.5]} 28. c7 {[%clk 0:07:07.6]} 28... Qc8 {[%clk 0:07:39.7]} 29. Qc6
{[%clk 0:06:54.4]} 29... Qd7 {[%clk 0:07:31.8]} 30. Qxd7 {[%clk 0:06:36.5]}
30... Bxd7 {[%clk 0:07:33.7]} 31. Rb1 {[%clk 0:06:37.3]} 31... Bd6 {[%clk
0:07:31.1]} 32. Rb8 {[%clk 0:06:37.6]} 32... Bxc7 {[%clk 0:07:31.5]} 33. Rb7
{[%clk 0:06:38.6]} 33... Bd6 {[%clk 0:07:28.2]} 34. Rxd7 {[%clk 0:06:38.9]}
34... Ke6 {[%clk 0:07:30.1]} 35. Rb7 {[%clk 0:06:37.2]} 35... d4 {[%clk
0:07:31.2]} 36. cxd4 {[%clk 0:06:38.2]} 36... exd4 {[%clk 0:07:30.9]} 37. Kf1
{[%clk 0:06:38.9]} 37... d3 {[%clk 0:07:30.7]} 38. Ke1 {[%clk 0:06:31.6]} 38...
Bf4 {[%clk 0:07:32.6]} 39. g3 {[%clk 0:06:31.2]} 39... d2+ {[%clk 0:07:34.5]}
40. Ke2 {[%clk 0:06:31.5]} 40... Bh6 {[%clk 0:07:36.4]} 41. Rb6+ {[%clk
0:06:31.6]} 1-0

[Event "GrandPrix_30.05"]
[Site "Chess.com"]
[Date "2020.05.30"]
[Round "7"]
[White "TimofeevAr"]
[Black "jacky72"]
[Result "1-0"]
[WhiteElo "2620"]
[BlackElo "2361"]
[TimeControl "600+2"]
[EndTime "11:14:59 PDT"]
[Termination "TimofeevAr won by resignation"]

1. c4 {[%clk 0:09:53.3]} 1... Nf6 {[%clk 0:10:00.2]} 2. Nc3 {[%clk 0:09:53.7]}
2... g6 {[%clk 0:10:01.1]} 3. e3 {[%clk 0:09:53.1]} 3... Bg7 {[%clk 0:10:00.9]}
4. Be2 {[%clk 0:09:54.3]} 4... O-O {[%clk 0:10:01.6]} 5. h4 {[%clk 0:09:55.3]}
5... h6 {[%clk 0:09:50.6]} 6. g4 {[%clk 0:09:48.9]} 6... d5 {[%clk 0:09:22.1]}
7. g5 {[%clk 0:09:45.8]} 7... Ne4 {[%clk 0:09:22]} 8. gxh6 {[%clk 0:09:40.9]}
8... Bxh6 {[%clk 0:09:15.8]} 9. cxd5 {[%clk 0:09:41.5]} 9... Bf5 {[%clk
0:09:11.9]} 10. d3 {[%clk 0:09:27.8]} 10... Nxc3 {[%clk 0:08:55.5]} 11. bxc3
{[%clk 0:09:28.2]} 11... Bg7 {[%clk 0:08:51.8]} 12. e4 {[%clk 0:09:28.9]} 12...
Bxc3+ {[%clk 0:08:46.5]} 13. Bd2 {[%clk 0:09:29.5]} 13... Bxa1 {[%clk
0:08:06.6]} 14. Qxa1 {[%clk 0:09:28.6]} 14... Bc8 {[%clk 0:08:07.3]} 15. h5
{[%clk 0:09:28.5]} 15... e5 {[%clk 0:08:03.5]} 16. Qxe5 {[%clk 0:09:21.8]} 16...
Qd6 {[%clk 0:07:57.2]} 17. Qc3 {[%clk 0:08:55.3]} 17... gxh5 {[%clk 0:07:30.9]}
18. Nf3 {[%clk 0:08:38.1]} 18... Bg4 {[%clk 0:07:28]} 19. Ne5 {[%clk 0:08:36.7]}
19... Bxe2 {[%clk 0:07:11.7]} 20. Rg1+ {[%clk 0:08:17.8]} 20... Kh7 {[%clk
0:07:12.5]} 21. Nc4 {[%clk 0:08:16.1]} 21... Qg6 {[%clk 0:06:13.7]} 22. Rxg6
{[%clk 0:08:13.9]} 22... fxg6 {[%clk 0:06:15.6]} 23. Kxe2 {[%clk 0:08:12.9]}
23... Nd7 {[%clk 0:06:14.5]} 24. Na5 {[%clk 0:07:56.7]} 24... Rac8 {[%clk
0:06:11.9]} 25. Nxb7 {[%clk 0:07:56]} 25... h4 {[%clk 0:06:12.9]} 26. Nc5 {[%clk
0:07:44.2]} 26... Nxc5 {[%clk 0:05:52.4]} 27. Qxc5 {[%clk 0:07:44.6]} 27... Rf7
{[%clk 0:05:54.3]} 28. Bg5 {[%clk 0:07:40.5]} 28... h3 {[%clk 0:05:51.6]} 29.
Qe3 {[%clk 0:07:41.4]} 29... h2 {[%clk 0:05:48.2]} 30. Qh3+ {[%clk 0:07:42.3]}
30... Kg8 {[%clk 0:05:49.5]} 31. Qxc8+ {[%clk 0:07:40.9]} 31... Kg7 {[%clk
0:05:50.7]} 32. Qh3 {[%clk 0:07:41]} 32... h1=Q {[%clk 0:05:52.6]} 33. Qxh1
{[%clk 0:07:41.8]} 33... Rf8 {[%clk 0:05:52.8]} 34. Bh6+ {[%clk 0:07:41.6]}
34... Kf7 {[%clk 0:05:53.8]} 35. Bxf8 {[%clk 0:07:42.6]} 35... Kxf8 {[%clk
0:05:54.7]} 36. Qh2 {[%clk 0:07:43.6]} 1-0

[Event "GrandPrix_30.05"]
[Site "Chess.com"]
[Date "2020.05.30"]
[Round "7"]
[White "Zubrrr"]
[Black "nikosgal"]
[Result "1/2-1/2"]
[WhiteElo "2516"]
[BlackElo "2303"]
[TimeControl "600+2"]
[EndTime "11:16:11 PDT"]
[Termination "Game drawn by agreement"]

1. c4 {[%clk 0:10:01.9]} 1... c5 {[%clk 0:09:56.2]} 2. g3 {[%clk 0:10:02.9]}
2... Nc6 {[%clk 0:09:57.8]} 3. Bg2 {[%clk 0:10:04.3]} 3... g6 {[%clk 0:09:59.3]}
4. Nc3 {[%clk 0:10:05.3]} 4... Bg7 {[%clk 0:10:00.8]} 5. Nf3 {[%clk 0:10:06.9]}
5... e5 {[%clk 0:10:01.8]} 6. O-O {[%clk 0:10:06.2]} 6... Nge7 {[%clk
0:10:03.3]} 7. Ne1 {[%clk 0:10:00.5]} 7... O-O {[%clk 0:10:04.4]} 8. Nc2 {[%clk
0:10:01.2]} 8... d6 {[%clk 0:09:47.7]} 9. d3 {[%clk 0:09:49.2]} 9... a6 {[%clk
0:09:47.4]} 10. a3 {[%clk 0:09:06.9]} 10... Rb8 {[%clk 0:09:30.8]} 11. b4 {[%clk
0:08:35]} 11... Nd4 {[%clk 0:09:09.8]} 12. Ne3 {[%clk 0:08:26.1]} 12... b5
{[%clk 0:09:00.4]} 13. Rb1 {[%clk 0:07:45.5]} 13... Be6 {[%clk 0:08:34.6]} 14.
Ned5 {[%clk 0:06:36.4]} 14... Nxd5 {[%clk 0:08:31.5]} 15. Nxd5 {[%clk
0:06:37.3]} 15... Qd7 {[%clk 0:07:47.2]} 16. e3 {[%clk 0:05:34.4]} 16... Nc6
{[%clk 0:07:45.3]} 17. Bd2 {[%clk 0:05:34.4]} 17... Rfc8 {[%clk 0:07:34.6]} 18.
Qe2 {[%clk 0:05:04.9]} 18... Ne7 {[%clk 0:07:16.5]} 19. Nxe7+ {[%clk 0:04:49.1]}
19... Qxe7 {[%clk 0:07:16.1]} 20. Rfc1 {[%clk 0:04:50.4]} 1/2-1/2

[Event "GrandPrix_30.05"]
[Site "Chess.com"]
[Date "2020.05.30"]
[Round "7"]
[White "Nikame"]
[Black "chansen64"]
[Result "0-1"]
[WhiteElo "2214"]
[BlackElo "2132"]
[TimeControl "600+2"]
[EndTime "11:16:14 PDT"]
[Termination "chansen64 won by resignation"]

1. d4 {[%clk 0:10:01.9]} 1... Nf6 {[%clk 0:09:59.5]} 2. Bg5 {[%clk 0:10:01.6]}
2... d5 {[%clk 0:09:58.2]} 3. Nd2 {[%clk 0:10:00.6]} 3... Bf5 {[%clk 0:09:55.7]}
4. Bxf6 {[%clk 0:09:59.2]} 4... exf6 {[%clk 0:09:54.7]} 5. e3 {[%clk 0:10:00.1]}
5... Nd7 {[%clk 0:09:42]} 6. g3 {[%clk 0:09:55.9]} 6... c6 {[%clk 0:09:41.9]} 7.
Bg2 {[%clk 0:09:55.5]} 7... Bd6 {[%clk 0:09:41.2]} 8. Ne2 {[%clk 0:09:55.5]}
8... O-O {[%clk 0:09:36.8]} 9. O-O {[%clk 0:09:53.9]} 9... Re8 {[%clk
0:09:33.6]} 10. c4 {[%clk 0:09:54.5]} 10... dxc4 {[%clk 0:09:32.2]} 11. Nxc4
{[%clk 0:09:52.2]} 11... Bf8 {[%clk 0:09:32.3]} 12. Nc3 {[%clk 0:09:51.7]} 12...
Nb6 {[%clk 0:09:28.8]} 13. Na5 {[%clk 0:09:18.4]} 13... Qd7 {[%clk 0:09:21.1]}
14. Re1 {[%clk 0:09:01.7]} 14... Bb4 {[%clk 0:09:08.6]} 15. Nb3 {[%clk
0:09:02.6]} 15... Rad8 {[%clk 0:09:02]} 16. Rc1 {[%clk 0:08:30.7]} 16... Be6
{[%clk 0:08:12.3]} 17. Ne4 {[%clk 0:08:23.2]} 17... Bxb3 {[%clk 0:08:07.4]} 18.
Qxb3 {[%clk 0:08:21.6]} 18... Bxe1 {[%clk 0:08:07.9]} 19. Nc5 {[%clk 0:08:19.1]}
19... Qe7 {[%clk 0:07:59.2]} 20. Rxe1 {[%clk 0:08:17.4]} 20... Rxd4 {[%clk
0:07:52.5]} 21. Qa3 {[%clk 0:08:03.4]} 21... Rd2 {[%clk 0:07:28.2]} 22. b4
{[%clk 0:07:45.4]} 22... a6 {[%clk 0:07:09.9]} 23. Qa5 {[%clk 0:07:16.3]} 23...
Nc4 {[%clk 0:06:57.8]} 24. Qa4 {[%clk 0:07:14.1]} 24... Red8 {[%clk 0:06:45.1]}
25. Qb3 {[%clk 0:07:01.5]} 25... Ne5 {[%clk 0:06:05.8]} 26. h3 {[%clk
0:06:49.5]} 26... Nd3 {[%clk 0:05:58.3]} 27. Rf1 {[%clk 0:06:47.5]} 27... Nxc5
{[%clk 0:05:32.5]} 28. bxc5 {[%clk 0:06:47.7]} 28... g6 {[%clk 0:05:28.6]} 29.
Rb1 {[%clk 0:06:40.6]} 29... R8d7 {[%clk 0:05:27.7]} 30. Qb2 {[%clk 0:06:27.2]}
30... Rxb2 {[%clk 0:05:26]} 0-1

[Event "GrandPrix_30.05"]
[Site "Chess.com"]
[Date "2020.05.30"]
[Round "7"]
[White "dzhumagaliev"]
[Black "vpantev"]
[Result "1-0"]
[WhiteElo "2285"]
[BlackElo "2470"]
[TimeControl "600+2"]
[EndTime "11:17:16 PDT"]
[Termination "dzhumagaliev won by resignation"]

1. Nf3 {[%clk 0:09:47.3]} 1... Nf6 {[%clk 0:09:58.8]} 2. h4 {[%clk 0:09:47.7]}
2... d5 {[%clk 0:09:57]} 3. h5 {[%clk 0:09:49]} 3... h6 {[%clk 0:09:54.7]} 4. d4
{[%clk 0:09:50]} 4... c6 {[%clk 0:09:43]} 5. c4 {[%clk 0:09:50.5]} 5... Bf5
{[%clk 0:09:37.3]} 6. Nc3 {[%clk 0:09:50.8]} 6... e6 {[%clk 0:09:36.2]} 7. Qb3
{[%clk 0:09:52.3]} 7... Qb6 {[%clk 0:09:35.3]} 8. c5 {[%clk 0:09:53.8]} 8...
Qxb3 {[%clk 0:09:36]} 9. axb3 {[%clk 0:09:55.7]} 9... Na6 {[%clk 0:08:59.3]} 10.
Bf4 {[%clk 0:08:24.5]} 10... Nd7 {[%clk 0:07:27.9]} 11. e4 {[%clk 0:07:57.2]}
11... dxe4 {[%clk 0:07:08.9]} 12. Bxa6 {[%clk 0:07:56.3]} 12... bxa6 {[%clk
0:07:03.7]} 13. Ne5 {[%clk 0:06:33.9]} 13... Nxe5 {[%clk 0:06:57.8]} 14. Bxe5
{[%clk 0:06:35.8]} 14... f6 {[%clk 0:06:55]} 15. Bf4 {[%clk 0:06:28.3]} 15... e5
{[%clk 0:06:42.2]} 16. Be3 {[%clk 0:06:29.2]} 16... exd4 {[%clk 0:06:36.5]} 17.
Bxd4 {[%clk 0:06:31.1]} 17... O-O-O {[%clk 0:06:31.7]} 18. Be3 {[%clk
0:06:31.8]} 18... Kb7 {[%clk 0:06:24.8]} 19. Ra4 {[%clk 0:06:31.6]} 19... Be7
{[%clk 0:05:33.4]} 20. O-O {[%clk 0:06:27.4]} 20... Bc8 {[%clk 0:05:16.4]} 21.
Nxe4 {[%clk 0:06:04.9]} 21... Rhe8 {[%clk 0:04:52.5]} 22. Bf4 {[%clk 0:06:05.5]}
22... f5 {[%clk 0:04:23.6]} 23. Rb4+ {[%clk 0:06:05.1]} 1-0

[Event "GrandPrix_30.05"]
[Site "Chess.com"]
[Date "2020.05.30"]
[Round "7"]
[White "Saqo007"]
[Black "BogdanBelyakov89"]
[Result "0-1"]
[WhiteElo "2124"]
[BlackElo "2253"]
[TimeControl "600+2"]
[EndTime "11:17:25 PDT"]
[Termination "BogdanBelyakov89 won by resignation"]

1. d4 {[%clk 0:10:01.9]} 1... Nf6 {[%clk 0:10:00.6]} 2. c4 {[%clk 0:10:02.4]}
2... g6 {[%clk 0:10:01.7]} 3. Nc3 {[%clk 0:10:04.3]} 3... Bg7 {[%clk 0:10:02.9]}
4. Nf3 {[%clk 0:10:02.6]} 4... O-O {[%clk 0:10:03.8]} 5. Bf4 {[%clk 0:10:03.7]}
5... c5 {[%clk 0:10:03.5]} 6. d5 {[%clk 0:10:02.6]} 6... d6 {[%clk 0:10:03.1]}
7. h3 {[%clk 0:09:53]} 7... e5 {[%clk 0:09:56.4]} 8. dxe6 {[%clk 0:09:49]} 8...
Bxe6 {[%clk 0:09:56.8]} 9. Bxd6 {[%clk 0:09:48.1]} 9... Re8 {[%clk 0:09:57.6]}
10. Bxc5 {[%clk 0:09:46.9]} 10... Qa5 {[%clk 0:09:49.1]} 11. b4 {[%clk
0:09:33.2]} 11... Qd8 {[%clk 0:08:49.4]} 12. Qxd8 {[%clk 0:09:30.8]} 12... Rxd8
{[%clk 0:08:50.3]} 13. Rd1 {[%clk 0:09:15.7]} 13... Na6 {[%clk 0:08:48.3]} 14.
Rxd8+ {[%clk 0:08:36.1]} 14... Rxd8 {[%clk 0:08:48.4]} 15. e3 {[%clk 0:08:37.7]}
15... Nxc5 {[%clk 0:06:51.5]} 16. bxc5 {[%clk 0:08:36.7]} 16... Nd7 {[%clk
0:06:51.9]} 17. Na4 {[%clk 0:08:36]} 17... Nxc5 {[%clk 0:06:48.3]} 18. Nxc5
{[%clk 0:08:15.7]} 18... Bc3+ {[%clk 0:06:48]} 19. Nd2 {[%clk 0:08:17.3]} 19...
Bxd2+ {[%clk 0:06:38.2]} 20. Ke2 {[%clk 0:08:17.9]} 20... Bxc4+ {[%clk
0:06:33.5]} 21. Kf3 {[%clk 0:08:19.1]} 21... Bxa2 {[%clk 0:06:34.2]} 22. Be2
{[%clk 0:08:04.2]} 22... Bd5+ {[%clk 0:06:17.5]} 23. Kg3 {[%clk 0:07:39.5]}
23... Bb4 {[%clk 0:06:13.3]} 24. Nd3 {[%clk 0:07:21.5]} 24... Bd6+ {[%clk
0:06:12.2]} 25. f4 {[%clk 0:07:23]} 25... a5 {[%clk 0:05:23.5]} 26. Rd1 {[%clk
0:06:57.8]} 26... a4 {[%clk 0:05:10.6]} 27. Nb2 {[%clk 0:06:35.7]} 27... a3
{[%clk 0:04:47.7]} 28. Rxd5 {[%clk 0:06:31.1]} 28... Bxf4+ {[%clk 0:04:47.7]}
0-1

[Event "GrandPrix_30.05"]
[Site "Chess.com"]
[Date "2020.05.30"]
[Round "7"]
[White "Hakob-Hakobyan-Arm"]
[Black "BakaPG"]
[Result "1-0"]
[WhiteElo "2190"]
[BlackElo "2261"]
[TimeControl "600+2"]
[EndTime "11:17:35 PDT"]
[Termination "Hakob-Hakobyan-Arm won by resignation"]

1. Nf3 {[%clk 0:10:01.9]} 1... d5 {[%clk 0:09:53.2]} 2. g3 {[%clk 0:10:01.9]}
2... Bg4 {[%clk 0:09:52.9]} 3. Bg2 {[%clk 0:10:03.2]} 3... Nd7 {[%clk
0:09:52.3]} 4. c4 {[%clk 0:10:03]} 4... e6 {[%clk 0:09:50.9]} 5. O-O {[%clk
0:10:00.3]} 5... Ngf6 {[%clk 0:09:49.9]} 6. d3 {[%clk 0:09:54.1]} 6... Be7
{[%clk 0:09:42.8]} 7. cxd5 {[%clk 0:09:32.2]} 7... exd5 {[%clk 0:09:42.5]} 8.
Qb3 {[%clk 0:09:33.7]} 8... Nc5 {[%clk 0:09:38.1]} 9. Qc2 {[%clk 0:09:35.2]}
9... O-O {[%clk 0:09:33.4]} 10. b4 {[%clk 0:09:33.1]} 10... Ne6 {[%clk
0:09:33.1]} 11. a3 {[%clk 0:09:22.3]} 11... Bxf3 {[%clk 0:09:31]} 12. exf3
{[%clk 0:09:24.2]} 12... a5 {[%clk 0:09:23.4]} 13. b5 {[%clk 0:08:56.4]} 13...
Bc5 {[%clk 0:09:05.3]} 14. Bb2 {[%clk 0:08:50.2]} 14... Bb6 {[%clk 0:08:51.5]}
15. f4 {[%clk 0:08:48.4]} 15... Re8 {[%clk 0:08:48.8]} 16. Nd2 {[%clk
0:08:41.1]} 16... a4 {[%clk 0:08:42.4]} 17. Nf3 {[%clk 0:08:28.8]} 17... Nd7
{[%clk 0:08:22.4]} 18. Rfe1 {[%clk 0:08:23.6]} 18... Ndc5 {[%clk 0:07:44.6]} 19.
f5 {[%clk 0:07:56.9]} 19... Nf8 {[%clk 0:07:42.5]} 20. Rxe8 {[%clk 0:07:45.9]}
20... Qxe8 {[%clk 0:07:43.2]} 21. Re1 {[%clk 0:07:47.8]} 21... Qxb5 {[%clk
0:07:41.8]} 22. Qc3 {[%clk 0:07:19.6]} 22... f6 {[%clk 0:07:38.7]} 23. Re7
{[%clk 0:07:20.7]} 23... Qc6 {[%clk 0:06:43.8]} 24. Ng5 {[%clk 0:05:21.5]} 24...
Qd6 {[%clk 0:06:34.6]} 25. Bxd5+ {[%clk 0:05:22.4]} 25... Qxd5 {[%clk
0:05:44.2]} 26. Rxg7+ {[%clk 0:05:23.5]} 26... Kh8 {[%clk 0:05:33.3]} 27. Qxf6
{[%clk 0:05:25.4]} 1-0

[Event "GrandPrix_30.05"]
[Site "Chess.com"]
[Date "2020.05.30"]
[Round "7"]
[White "KruHor"]
[Black "Supernotar"]
[Result "0-1"]
[WhiteElo "2394"]
[BlackElo "2251"]
[TimeControl "600+2"]
[EndTime "11:19:01 PDT"]
[Termination "Supernotar won by resignation"]

1. d4 {[%clk 0:09:59.3]} 1... d5 {[%clk 0:09:56.9]} 2. c4 {[%clk 0:09:58.4]}
2... dxc4 {[%clk 0:09:57.7]} 3. Nf3 {[%clk 0:09:57.6]} 3... Nf6 {[%clk
0:09:56.7]} 4. Nc3 {[%clk 0:09:56.9]} 4... a6 {[%clk 0:09:55.8]} 5. e4 {[%clk
0:09:55.7]} 5... b5 {[%clk 0:09:55.5]} 6. e5 {[%clk 0:09:53.8]} 6... Nd5 {[%clk
0:09:54.4]} 7. a4 {[%clk 0:09:52.8]} 7... Nxc3 {[%clk 0:09:55.2]} 8. bxc3 {[%clk
0:09:52]} 8... Qd5 {[%clk 0:09:56.1]} 9. g3 {[%clk 0:09:44.6]} 9... Bb7 {[%clk
0:09:55.3]} 10. Bg2 {[%clk 0:09:35.7]} 10... Qd7 {[%clk 0:09:53.3]} 11. Ba3
{[%clk 0:09:35.9]} 11... g6 {[%clk 0:09:52.7]} 12. O-O {[%clk 0:09:35.8]} 12...
Bg7 {[%clk 0:09:52.3]} 13. Re1 {[%clk 0:09:15.8]} 13... O-O {[%clk 0:09:40.1]}
14. Ng5 {[%clk 0:08:52.7]} 14... Bxg2 {[%clk 0:09:29.4]} 15. Kxg2 {[%clk
0:08:53.2]} 15... Nc6 {[%clk 0:08:34.3]} 16. Qf3 {[%clk 0:08:32.7]} 16... b4
{[%clk 0:06:42.6]} 17. Bxb4 {[%clk 0:07:35.7]} 17... Nxb4 {[%clk 0:06:41.9]} 18.
cxb4 {[%clk 0:07:36.1]} 18... Qxd4 {[%clk 0:06:38]} 19. Rad1 {[%clk 0:07:12.1]}
19... Qb2 {[%clk 0:06:26.9]} 20. Nxf7 {[%clk 0:06:03.4]} 20... Qxb4 {[%clk
0:06:08.1]} 21. Rb1 {[%clk 0:05:08.9]} 21... Qxa4 {[%clk 0:04:53.8]} 22. Rb7
{[%clk 0:04:18.3]} 22... Rxf7 {[%clk 0:04:37.3]} 0-1

[Event "GrandPrix_30.05"]
[Site "Chess.com"]
[Date "2020.05.30"]
[Round "7"]
[White "klimkoj"]
[Black "StephenDedalus83"]
[Result "1-0"]
[WhiteElo "2105"]
[BlackElo "2030"]
[TimeControl "600+2"]
[EndTime "11:19:10 PDT"]
[Termination "klimkoj won by resignation"]

1. e4 {[%clk 0:10:01.9]} 1... c5 {[%clk 0:09:59]} 2. Nf3 {[%clk 0:10:02.3]} 2...
Nc6 {[%clk 0:09:56.4]} 3. d4 {[%clk 0:10:03.5]} 3... cxd4 {[%clk 0:09:57.9]} 4.
Nxd4 {[%clk 0:10:04.7]} 4... Qc7 {[%clk 0:09:58.7]} 5. Nc3 {[%clk 0:10:05.4]}
5... e6 {[%clk 0:09:59.6]} 6. Nb3 {[%clk 0:09:59.8]} 6... Nf6 {[%clk 0:09:57.8]}
7. Bd3 {[%clk 0:10:00.6]} 7... a6 {[%clk 0:09:50.3]} 8. O-O {[%clk 0:10:00.4]}
8... b5 {[%clk 0:09:50.4]} 9. Be3 {[%clk 0:10:00.8]} 9... Bb7 {[%clk 0:09:49.6]}
10. f4 {[%clk 0:09:59.4]} 10... d6 {[%clk 0:09:49.1]} 11. Qe2 {[%clk 0:09:59]}
11... Be7 {[%clk 0:09:48.5]} 12. Rae1 {[%clk 0:09:40.4]} 12... O-O {[%clk
0:09:47.7]} 13. Qf3 {[%clk 0:09:34.9]} 13... Nb4 {[%clk 0:09:46]} 14. Qh3 {[%clk
0:09:34]} 14... Nxd3 {[%clk 0:09:45.7]} 15. cxd3 {[%clk 0:09:33.2]} 15... b4
{[%clk 0:09:44.9]} 16. Na4 {[%clk 0:09:26.9]} 16... Nd7 {[%clk 0:09:02.8]} 17.
Rc1 {[%clk 0:09:22.3]} 17... Qb8 {[%clk 0:09:03.1]} 18. Nd4 {[%clk 0:09:10.8]}
18... Rc8 {[%clk 0:08:59.4]} 19. Nxe6 {[%clk 0:09:08.9]} 19... Bc6 {[%clk
0:08:52.4]} 20. b3 {[%clk 0:07:41.7]} 20... fxe6 {[%clk 0:08:50.5]} 21. Qxe6+
{[%clk 0:07:41.5]} 21... Kf8 {[%clk 0:08:52.1]} 22. Rxc6 {[%clk 0:07:42]} 22...
Rxc6 {[%clk 0:08:52.3]} 23. Qxd7 {[%clk 0:07:42.6]} 23... Qc7 {[%clk 0:08:52.7]}
24. Qf5+ {[%clk 0:07:33.4]} 24... Kg8 {[%clk 0:08:53.5]} 25. Nb6 {[%clk
0:07:31.8]} 25... Re8 {[%clk 0:08:40.4]} 26. Nc4 {[%clk 0:06:52.3]} 26... Bf8
{[%clk 0:08:24.6]} 27. Qd5+ {[%clk 0:06:41.3]} 27... Kh8 {[%clk 0:08:24.4]} 28.
Bd4 {[%clk 0:06:34.7]} 28... a5 {[%clk 0:07:41.4]} 29. f5 {[%clk 0:06:24.2]}
29... Rc5 {[%clk 0:06:40.4]} 30. Bxc5 {[%clk 0:06:16]} 30... dxc5 {[%clk
0:06:42.3]} 31. e5 {[%clk 0:06:03.5]} 31... Rd8 {[%clk 0:06:39.3]} 32. Qf3
{[%clk 0:05:43]} 32... Qd7 {[%clk 0:06:36.7]} 33. Rd1 {[%clk 0:05:16.1]} 33...
Qd4+ {[%clk 0:06:37]} 34. Qf2 {[%clk 0:05:16.5]} 34... Qd5 {[%clk 0:06:26.7]}
35. f6 {[%clk 0:04:55.2]} 35... gxf6 {[%clk 0:06:26.7]} 36. exf6 {[%clk
0:04:50]} 36... Kg8 {[%clk 0:06:25.3]} 37. Re1 {[%clk 0:04:41.7]} 37... Qxd3
{[%clk 0:06:19.6]} 38. f7+ {[%clk 0:04:24.6]} 38... Kg7 {[%clk 0:06:19.8]} 39.
h3 {[%clk 0:04:18.7]} 39... Qd4 {[%clk 0:06:18.5]} 40. Re3 {[%clk 0:04:10.8]}
40... Rd7 {[%clk 0:06:11.7]} 41. Rg3+ {[%clk 0:03:58.7]} 41... Kh6 {[%clk
0:06:06.5]} 42. Ne3 {[%clk 0:03:59.1]} 1-0